bitfinex-derivatives/quotes_BNBF0:USTF0_20250511
["timestamp","ask_amount","ask_price","bid_price","bid_amount"]
[1746959916047,0.30322786,659.57,658.38,0.26405545]
[1746959916249,0.30322786,659.57,658.39,1.16624973]
[1746959917050,0.30322786,659.57,658.08,0.30391441]
[1746959917349,0.30322786,659.57,658.09,0.30363914]
[1746959917551,0.30322786,659.57,658.1,0.60754432]
[1746959917746,0.30322786,659.57,658.11,1.46977719]
[1746959917971,0.30322786,659.57,658.12,0.30363914]
[1746959918146,0.30322786,659.57,658.13,0.30363914]
[1746959918447,0.30322786,659.57,658.14,0.30363914]
[1746959918649,0.30322786,659.57,658.15,1.46977719]
[1746959918845,0.30322786,659.57,658.16,0.30363914]
[1746959919150,0.30322786,659.57,658.17,1.16613805]
[1746959919450,0.30322786,659.57,658.18,0.30363914]
[1746959919648,0.30322786,659.57,658.19,1.16613805]
[1746959919846,0.30322786,659.57,658.2,0.30363914]
[1746959920067,0.30322786,659.57,658.21,1.16613805]
[1746959920251,0.30322786,659.57,658.22,0.30363914]
[1746959920451,0.30322786,659.57,658.23,1.16613805]
[1746959920644,0.30322786,659.57,658.24,0.30363914]
[1746959921446,0.30322786,659.57,658.25,1.16613805]
[1746959921651,0.30322786,659.57,658.26,0.30363914]
[1746959921954,0.30322786,659.57,658.27,0.30363914]
[1746959922154,0.30322786,659.57,658.28,0.30363914]
[1746959922350,0.30322786,659.57,658.25,1.16613805]
[1746959922351,0.30322786,659.57,658.29,0.30363914]
[1746959922552,0.30322786,659.57,658.3,0.30363914]
[1746959922953,0.30322786,659.57,658.31,1.16613805]
[1746959923248,0.30322786,659.57,658.32,0.30363914]
[1746959923453,0.30322786,659.57,658.33,1.46977719]
[1746959923649,0.30322786,659.57,658.34,1.46977719]
[1746959923854,0.30322786,659.57,658.34,1.16613805]
[1746959924055,0.30322786,659.57,658.35,1.16613805]
[1746959924549,0.30322786,659.57,658.36,1.16613805]
[1746959924755,0.30322786,659.57,658.37,1.16613805]
[1746959924954,0.26400637,659.56,658.37,1.16613805]
[1746959925154,0.30323705,659.55,658.37,1.16613805]
[1746959925352,0.30323705,659.55,658.38,1.16613805]
[1746959925955,0.30323705,659.55,658.24,1.16613805]
[1746959926153,0.30323705,659.55,658.25,0.30363894]
[1746959926350,0.30323705,659.55,658.26,0.30363894]
[1746959926558,0.30323705,659.55,658.27,0.30363894]
[1746959926755,0.30323705,659.55,658.28,0.30363894]
[1746959926955,0.30323705,659.55,658.29,1.46977699]
[1746959927156,0.30323705,659.55,658.3,0.30363894]
[1746959927356,0.30323705,659.55,658.31,0.30363894]
[1746959927555,0.30323705,659.55,658.32,0.30363894]
[1746959927856,0.26407048,659.54,658.33,1.16613805]
[1746959928159,0.30324625,659.53,658.34,0.30363894]
[1746959928457,0.30324625,659.53,658.35,1.16613805]
[1746959928955,0.30324625,659.53,658.27,1.16613805]
[1746959929152,0.30324625,659.53,658.28,0.30363839]
[1746959929456,0.30324625,659.53,658.29,1.46977644]
[1746959929656,0.30324625,659.53,658.3,0.30363839]
[1746959930558,0.30324625,659.53,658.31,1.16613805]
[1746959930750,0.30324625,659.53,658.32,0.30363839]
[1746959931151,0.26407048,659.52,658.33,1.16613805]
[1746959931352,0.30325544,659.51,658.34,0.30363839]
[1746959931657,0.30325544,659.51,658.35,1.46977642]
[1746959931957,0.30325544,659.51,658.36,0.30363837]
[1746959932153,0.30325544,659.51,658.35,1.16613805]
[1746959932354,0.30325544,659.51,658.36,0.30364015]
[1746959932559,0.30325544,659.51,658.37,1.16613805]
[1746959932754,0.30325544,659.51,658.29,1.16613805]
[1746959932956,0.30325544,659.51,658.3,0.30363358]
[1746959933157,0.30325544,659.51,658.31,0.30363358]
[1746959933353,0.30325544,659.51,658.32,0.30363505]
[1746959933557,0.30325544,659.51,658.33,0.30363505]
[1746959933758,0.30325544,659.51,658.34,0.30363505]
[1746959933954,0.30325544,659.51,658.35,1.4697731]
[1746959934157,0.30325544,659.51,658.36,0.30363505]
[1746959934355,0.30325544,659.51,658.37,0.30363505]
[1746959934657,0.30325544,659.51,658.38,1.4697731]
[1746959934857,0.30325544,659.51,658.38,1.16613805]
[1746959935282,0.30325544,659.51,658.11,1.16613805]
[1746959935454,0.30325544,659.51,658.12,0.30363405]
[1746959935657,0.30325544,659.51,658.13,0.30363405]
[1746959935853,0.30325544,659.51,658.14,1.4697721]
[1746959936054,0.30325544,659.51,658.15,0.30363405]
[1746959936254,0.30325544,659.51,658.16,0.30363405]
[1746959936459,0.30325544,659.51,658.17,0.30363405]
[1746959936754,0.30325544,659.51,658.18,0.30363405]
[1746959936957,0.30325544,659.51,658.19,1.4697721]
[1746959937156,0.30325544,659.51,658.2,0.30363418]
[1746959937358,0.30325544,659.51,658.21,0.30363418]
[1746959937555,0.30325544,659.51,658.22,0.30363418]
[1746959937759,0.30325544,659.51,658.23,1.46977223]
[1746959937956,0.30325544,659.51,658.24,0.30363418]
[1746959938161,0.30325544,659.51,658.25,0.30363418]
[1746959938359,0.30325544,659.51,658.26,0.30363418]
[1746959938561,0.30325544,659.51,658.27,0.30363418]
[1746959938756,0.30325544,659.51,658.28,1.46976517]
[1746959938959,0.30325544,659.51,658.29,0.30362713]
[1746959939160,0.30325544,659.51,658.3,0.30362713]
[1746959939358,0.30325544,659.51,658.31,0.30362713]
[1746959939559,0.30325544,659.51,658.32,1.46976518]
[1746959939762,0.30325544,659.51,658.33,0.30362713]
[1746959939960,0.30325544,659.51,658.34,0.30362713]
[1746959940261,0.30325544,659.51,658.35,1.46976518]
[1746959940465,0.30325544,659.51,658.36,0.30362713]
[1746959940662,0.30325544,659.51,658.37,1.16613805]
[1746959940862,0.30325544,659.51,658.38,0.30357468]
[1746959941166,0.30325544,659.51,658.39,1.46971273]
[1746959941367,0.30325544,659.51,658.4,0.30357468]
[1746959941868,0.30325544,659.51,658.41,0.30357468]
[1746959942169,0.30325544,659.51,658.42,0.30357753]
[1746959942366,0.30325544,659.51,658.43,0.30357753]
[1746959942567,0.30325544,659.51,658.44,1.46971558]
[1746959942768,0.30325544,659.51,658.45,0.30357753]
[1746959943069,0.30325544,659.51,658.46,1.46971558]
[1746959943270,0.30325544,659.51,658.47,0.30357753]
[1746959943469,0.30325544,659.51,658.48,0.30357753]
[1746959943668,0.30325544,659.51,658.49,0.30357753]
[1746959943970,0.30325544,659.51,658.5,1.46971485]
[1746959944162,0.30325544,659.51,658.51,0.3035768]
[1746959944367,0.30325544,659.51,658.52,1.46971485]
[1746959944568,0.30325544,659.51,658.53,0.3035768]
[1746959944966,0.30325544,659.51,658.54,1.16613805]
[1746959945169,0.30325544,659.51,658.55,0.3035768]
[1746959945569,0.30325544,659.51,658.56,1.16613805]
[1746959946371,0.30325544,659.51,658.57,1.16613805]
[1746959947471,0.30325544,659.51,658.58,1.16613805]
[1746959948168,0.30325544,659.51,658.59,1.16613805]
[1746959948374,0.30325544,659.51,658.59,1.70513805]
[1746959948565,0.30325544,659.51,658.6,1.16613805]
[1746959949174,0.30325544,659.51,658.61,1.16613805]
[1746959949570,0.30325544,659.51,658.62,1.16613805]
[1746959949772,0.30325544,659.51,658.6,1.16613805]
[1746959950173,0.30325544,659.51,658.61,1.16613805]
[1746959950774,0.30325544,659.51,658.62,1.16613805]
[1746959951372,0.30325544,659.51,658.59,0.539]
[1746959951975,0.30325544,659.51,658.6,1.16885879]
[1746959952369,0.30325544,659.51,658.59,0.539]
[1746959953174,0.30325544,659.51,658.6,1.16868402]
[1746959954073,0.30325544,659.51,658.59,0.539]
[1746959955076,0.30325544,659.51,658.6,1.16859853]
[1746959955575,0.30325544,659.51,658.59,0.539]
[1746959961279,0.30325544,659.51,658.1,0.30390518]
[1746959961477,0.30325544,659.51,658.11,1.47192445]
[1746959961681,0.30325544,659.51,658.12,0.30357725]
[1746959961876,0.30325544,659.51,658.13,0.30357725]
[1746959962182,0.30325544,659.51,658.14,1.47192533]
[1746959962377,0.30325544,659.51,658.15,0.30357813]
[1746959962580,0.30325544,659.51,658.14,1.1683472]
[1746959962581,0.30325544,659.51,658.16,0.30357813]
[1746959962782,0.30325544,659.51,658.17,0.60745098]
[1746959962974,0.30325544,659.51,658.18,0.30357813]
[1746959963183,0.30325544,659.51,658.19,0.60744175]
[1746959963376,0.30325544,659.51,658.2,1.77578433]
[1746959963581,0.30325544,659.51,658.21,1.77577972]
[1746959963777,0.30325544,659.51,658.22,0.6074279]
[1746959963982,0.30325544,659.51,658.23,0.60742329]
[1746959964176,0.30325544,659.51,658.24,1.47192533]
[1746959964380,0.30325544,659.51,658.25,0.30357813]
[1746959964582,0.30325544,659.51,658.26,0.30357813]
[1746959964784,0.30325544,659.51,658.27,0.30357813]
[1746959964982,0.30325544,659.51,658.28,0.30357813]
[1746959965182,0.30325544,659.51,658.29,0.30357813]
[1746959965383,0.30325544,659.51,658.3,0.30357813]
[1746959965584,0.30325544,659.51,658.31,1.47192533]
[1746959965783,0.30325544,659.51,658.32,0.30357813]
[1746959965984,0.30325544,659.51,658.33,1.47192533]
[1746959966184,0.30325544,659.51,658.34,0.30357813]
[1746959966386,0.30325544,659.51,658.35,0.30357813]
[1746959966685,0.30325544,659.51,658.36,0.30357813]
[1746959966887,0.30325544,659.51,658.37,0.30357813]
[1746959967087,0.30325544,659.51,658.38,1.47192533]
[1746959967280,0.30325544,659.51,658.39,0.30357813]
[1746959967486,0.30325544,659.51,658.4,0.30357813]
[1746959967783,0.30325544,659.51,658.38,1.1683472]
[1746959967784,0.30325544,659.51,658.41,0.30357813]
[1746959967984,0.30325544,659.51,658.42,0.30357813]
[1746959968179,0.30325544,659.51,658.43,1.47192533]
[1746959968384,0.30325544,659.51,658.44,0.30357813]
[1746959968584,0.30325544,659.51,658.45,0.30357813]
[1746959968784,0.30325544,659.51,658.46,0.30357813]
[1746959968985,0.30325544,659.51,658.47,0.30357813]
[1746959969190,0.30325544,659.51,658.48,1.47192533]
[1746959969485,0.30325544,659.51,658.49,0.30357813]
[1746959969689,0.30325544,659.51,658.5,0.30357813]
[1746959969889,0.30325544,659.51,658.51,1.47192533]
[1746959970092,0.30325544,659.51,658.51,1.1683472]
[1746959970293,0.30325544,659.51,658.52,0.30354414]
[1746959970493,0.30325544,659.51,658.53,1.47189134]
[1746959970688,0.30325544,659.51,658.54,0.30354414]
[1746959970916,0.30325544,659.51,658.55,1.47189134]
[1746959971093,0.30325544,659.51,658.56,1.47189134]
[1746959971393,0.30325544,659.51,658.57,0.30354414]
[1746959971794,0.30325544,659.51,658.58,1.1683472]
[1746959971991,0.30325544,659.51,658.59,0.30354414]
[1746959972297,0.30325544,659.51,658.6,1.1683472]
[1746959972596,0.30325544,659.51,658.61,1.47189134]
[1746959972791,0.30325544,659.51,658.62,0.30354414]
[1746959973196,0.30325544,659.51,658.63,1.1683472]
[1746959973897,0.30325544,659.51,658.64,1.1683472]
[1746959974598,0.30325544,659.51,658.65,1.1683472]
[1746959975099,0.30325544,659.51,658.45,0.26393329]
[1746959975100,0.30325544,659.51,658.66,1.1683472]
[1746959975394,0.30325544,659.51,658.67,1.1683472]
[1746959975895,0.30325544,659.51,658.68,1.1683472]
[1746959976397,0.30325544,659.51,658.69,1.1683472]
[1746959977198,0.30325544,659.51,658.26,0.539]
[1746959977395,0.30325544,659.51,658.27,0.60737412]
[1746959977598,0.30325544,659.51,658.28,0.60736734]
[1746959977792,0.30325544,659.51,658.29,0.30354526]
[1746959977997,0.30325544,659.51,658.3,0.30354526]
[1746959978298,0.30325544,659.51,658.31,1.46928328]
[1746959978498,0.30325544,659.51,658.32,0.30354526]
[1746959978695,0.30325544,659.51,658.33,0.30354225]
[1746959978895,0.30325544,659.51,658.34,0.30354225]
[1746959979200,0.30325544,659.51,658.35,0.30354225]
[1746959979400,0.30325544,659.51,658.36,1.46928027]
[1746959979601,0.30325544,659.51,658.37,0.30358469]
[1746959979801,0.30325544,659.51,658.38,1.46932271]
[1746959980002,0.30325544,659.51,658.39,0.30358469]
[1746959980204,0.30325544,659.51,658.4,1.46932271]
[1746959980503,0.30325544,659.51,658.41,0.30358469]
[1746959980802,0.30325544,659.51,658.42,1.16573802]
[1746959981002,0.30325544,659.51,658.43,0.30358469]
[1746959981503,0.30325544,659.51,658.44,1.16573802]
[1746959981704,0.30325544,659.51,658.45,0.30358469]
[1746959982109,0.30325544,659.51,658.46,1.16573802]
[1746959983106,0.30325544,659.51,658.47,1.16573802]
[1746959983809,0.30325544,659.51,658.48,1.16573802]
[1746959984207,0.30325544,659.51,658.49,1.16573802]
[1746959984907,0.30325544,659.51,658.5,1.16573802]
[1746959985105,0.56726482,659.51,658.5,1.16573802]
[1746959985407,0.56726482,659.51,658.51,1.16573802]
[1746959985915,0.56726482,659.51,658.29,1.16573802]
[1746959986108,0.56726482,659.51,658.3,0.30362341]
[1746959986311,0.56726482,659.51,658.31,0.30362341]
[1746959986609,0.56726482,659.51,658.32,0.30362341]
[1746959986810,0.56726482,659.51,658.33,0.30362341]
[1746959987110,0.56726482,659.51,658.34,0.303623]
[1746959987305,0.56726482,659.51,658.35,1.46936102]
[1746959987505,0.56726482,659.51,658.36,0.303623]
[1746959987711,0.30325544,659.51,658.37,1.16573802]
[1746959987909,0.30325544,659.51,658.38,0.303623]
[1746959988410,0.30325544,659.51,658.39,1.16573802]
[1746959988613,0.30325544,659.51,658.4,0.303623]
[1746959988812,0.30325544,659.51,658.41,1.16573802]
[1746959989111,0.30325544,659.51,658.42,0.303623]
[1746959989511,0.30325544,659.51,658.43,1.16573802]
[1746959989712,0.30325544,659.51,658.44,0.303623]
[1746959989909,0.56726582,659.51,658.44,0.303623]
[1746959990108,0.56726582,659.51,658.45,1.16573802]
[1746959990713,0.30325544,659.51,658.28,0.30382208]
[1746959990913,0.30325544,659.51,658.46,1.16891752]
[1746959991213,0.26402941,659.5,658.46,1.16891752]
[1746959991414,0.26402941,659.5,658.47,1.16891752]
[1746959991914,0.26402941,659.5,658.3,1.16891752]
[1746959992115,0.26402941,659.5,658.31,0.30366887]
[1746959992415,0.26402941,659.5,658.32,1.47258639]
[1746959992716,0.26402941,659.5,658.33,0.30367535]
[1746959992910,0.26402941,659.5,658.34,1.47259287]
[1746959993113,0.26402941,659.5,658.34,1.16891752]
[1746959993418,0.26402941,659.5,658.35,1.16891752]
[1746959993746,0.30325544,659.51,658.35,1.16891752]
[1746959994015,0.30325544,659.51,658.36,1.16891752]
[1746959994216,0.26403642,659.5,658.36,1.16891752]
[1746959994416,0.30326464,659.49,658.37,0.539]
[1746959994712,0.30326464,659.49,658.38,1.16891752]
[1746959997118,0.26404143,659.48,658.38,1.16891752]
[1746959997318,0.30327384,659.47,658.38,1.16891752]
[1746960002320,0.2640274,659.46,658.38,1.16891752]
[1746960002619,0.30328303,659.45,658.38,1.16891752]
[1746960003214,0.30328303,659.45,658.37,0.539]
[1746960003414,0.30328303,659.45,658.39,1.16988119]
[1746960004020,0.30328303,659.45,658.4,1.16988119]
[1746960004514,0.30328303,659.45,658.37,0.539]
[1746960004921,0.30328303,659.45,658.38,1.1695178]
[1746960005517,0.30328303,659.45,658.39,1.1695178]
[1746960005921,0.30328303,659.45,658.4,1.1695178]
[1746960006521,0.30328303,659.45,658.38,1.1695178]
[1746960006821,0.30328303,659.45,658.39,1.1695178]
[1746960007321,0.30328303,659.45,658.37,0.539]
[1746960010746,0.26403141,659.44,658.37,0.539]
[1746960011224,0.30329683,659.42,658.37,0.539]
[1746960011918,0.26414264,659.41,658.37,0.539]
[1746960012625,0.30331063,659.39,658.37,0.539]
[1746960014926,0.26414564,659.38,658.37,0.539]
[1746960015226,0.30332443,659.36,658.37,0.539]
[1746960017424,0.30332443,659.36,656.9,0.96842989]
[1746960017626,0.30332443,659.36,657.02,0.30440473]
[1746960017829,0.30332443,659.36,657.03,0.30377564]
[1746960018030,0.2642951,659.35,657.14,0.30434914]
[1746960018228,0.30333823,659.33,657.15,1.47229046]
[1746960018429,0.30333823,659.33,657.25,0.30429821]
[1746960018630,0.30333823,659.33,657.26,1.47229046]
[1746960018832,0.30333823,659.33,657.36,0.30424729]
[1746960019128,0.30333823,659.33,657.37,0.30377521]
[1746960019329,0.30333823,659.33,657.38,0.30377521]
[1746960019529,0.30333823,659.33,657.36,0.30424729]
[1746960019530,0.30333823,659.33,657.39,1.47229046]
[1746960019726,0.30333823,659.33,657.4,0.30377521]
[1746960019930,0.30333823,659.33,657.41,0.30377521]
[1746960020230,0.30333823,659.33,657.42,0.30377521]
[1746960020426,0.30333823,659.33,657.43,1.47229046]
[1746960020627,0.30333823,659.33,657.45,0.30420564]
[1746960020827,0.30333823,659.33,657.46,0.30377521]
[1746960021028,0.26423991,659.32,657.47,1.47229046]
[1746960021229,0.26423991,659.32,657.48,0.30377521]
[1746960021432,0.26423991,659.32,657.49,0.30377521]
[1746960021733,0.26423991,659.32,657.5,1.77647296]
[1746960022030,0.26423991,659.32,657.51,1.47229046]
[1746960022331,0.26423991,659.32,657.52,0.30377521]
[1746960022527,0.26423991,659.32,657.53,0.30377521]
[1746960022725,0.26423991,659.32,657.54,1.47229046]
[1746960022924,0.26423991,659.32,657.56,0.30415475]
[1746960023230,0.30334743,659.31,657.57,1.47229046]
[1746960023434,0.30334743,659.31,657.58,1.47229046]
[1746960023730,0.30334743,659.31,657.6,0.30413625]
[1746960023930,0.30334743,659.31,657.61,0.30377336]
[1746960024130,0.26420681,659.3,657.62,0.60790036]
[1746960024429,0.26420681,659.3,657.63,0.60789573]
[1746960024630,0.26420681,659.3,657.64,0.30377336]
[1746960024862,0.26420681,659.3,657.65,0.30377336]
[1746960025032,0.26420681,659.3,657.66,1.47228861]
[1746960025331,0.26420681,659.3,657.67,0.30377336]
[1746960025532,0.26420681,659.3,657.68,0.3037735]
[1746960025731,0.26420681,659.3,657.69,1.47228875]
[1746960025932,0.26420681,659.3,657.7,0.3037735]
[1746960026125,0.26420681,659.3,657.71,1.47228875]
[1746960026326,0.26420681,659.3,657.72,0.3037735]
[1746960026527,0.26420681,659.3,657.73,0.60784964]
[1746960026728,0.30334743,659.31,657.74,0.3037735]
[1746960026933,0.26421383,659.29,657.75,0.3037735]
[1746960027127,0.26421383,659.29,657.76,0.3037735]
[1746960027328,0.26421383,659.29,657.77,0.3037735]
[1746960027532,0.26421383,659.29,657.78,0.3037735]
[1746960027833,0.26421383,659.29,657.79,1.47228875]
[1746960028035,0.26421383,659.29,657.8,0.3037735]
[1746960028235,0.26421383,659.29,657.81,1.47228875]
[1746960028436,0.26421383,659.29,657.82,0.3037735]
[1746960028635,0.26421383,659.29,657.83,0.60780341]
[1746960028931,0.30336124,659.28,657.84,0.60779879]
[1746960029135,0.30336124,659.28,657.85,0.60779417]
[1746960029335,0.30336124,659.28,657.86,0.60778955]
[1746960029531,0.30336124,659.28,657.87,1.77630018]
[1746960029736,0.30336124,659.28,657.88,0.6077803]
[1746960029936,0.30336124,659.28,657.89,0.60777568]
[1746960030134,0.30336124,659.28,657.9,0.60777106]
[1746960030334,0.30336124,659.28,657.91,0.3037735]
[1746960030530,0.30336124,659.28,657.92,0.3037735]
[1746960030733,0.30336124,659.28,657.93,1.47228875]
[1746960030941,0.30336124,659.28,657.94,0.3037735]
[1746960031132,0.30336124,659.28,657.93,1.16851525]
[1746960031133,0.30336124,659.28,657.95,0.30375985]
[1746960031333,0.30336124,659.28,657.96,0.30375985]
[1746960031531,0.30336124,659.28,657.97,1.4722751]
[1746960031730,0.30336124,659.28,657.98,1.4722751]
[1746960032030,0.30336124,659.28,657.99,0.30375985]
[1746960032231,0.30336124,659.28,658.0,1.4722751]
[1746960032434,0.30336124,659.28,658.01,0.30375985]
[1746960032632,0.30336124,659.28,658.02,1.4722751]
[1746960032936,0.30336124,659.28,658.03,0.30375985]
[1746960033137,0.30336124,659.28,658.04,1.4722751]
[1746960033331,0.30336124,659.28,658.05,0.30375985]
[1746960033531,0.30336124,659.28,658.06,0.30375985]
[1746960033731,0.30336124,659.28,658.07,0.30375985]
[1746960033933,0.30336124,659.28,658.08,0.30375985]
[1746960034140,0.30336124,659.28,658.09,0.30375985]
[1746960034338,0.30336124,659.28,658.1,1.4722751]
[1746960034540,0.30336124,659.28,658.11,0.30375985]
[1746960034741,0.30336124,659.28,658.12,0.30375985]
[1746960035041,0.30336124,659.28,658.13,0.30372567]
[1746960035241,0.30336124,659.28,658.12,1.16851525]
[1746960035441,0.30336124,659.28,657.9,0.30399756]
[1746960035442,0.30336124,659.28,658.13,1.47223814]
[1746960035741,0.30336124,659.28,658.14,0.30372289]
[1746960035942,0.30336124,659.28,658.15,1.16851525]
[1746960036641,0.30336124,659.28,658.16,1.16851525]
[1746960036942,0.30336124,659.28,658.17,1.16851525]
[1746960037942,0.30336124,659.28,658.18,1.16851525]
[1746960038244,0.30336124,659.28,658.19,1.16851525]
[1746960039560,0.30336124,659.28,658.2,1.16851525]
[1746960039844,0.30336124,659.28,658.19,1.16851525]
[1746960041748,0.30336124,659.28,658.2,1.16851525]
[1746960042242,0.30336124,659.28,658.19,1.16851525]
[1746960050954,0.26416169,659.27,658.19,1.16851525]
[1746960051456,0.30337044,659.26,658.19,1.16851525]
[1746960052956,0.30337044,659.26,658.18,0.539]
[1746960054058,0.26417071,659.25,658.19,1.17200103]
[1746960054657,0.26417071,659.25,658.18,0.539]
[1746960055158,0.30337964,659.24,658.18,0.539]
[1746960056058,0.30337964,659.24,658.19,1.17212398]
[1746960056361,0.30337964,659.24,658.2,1.17212398]
[1746960056954,0.30337964,659.24,658.21,1.17212398]
[1746960057358,0.30337964,659.24,658.18,1.17212398]
[1746960059462,0.56750624,659.24,658.18,1.17212398]
[1746960061058,0.56750624,659.24,658.18,1.71112398]
[1746960061458,0.56750624,659.24,658.19,1.17212398]
[1746960062864,0.30337964,659.24,658.19,1.17212398]
[1746960063165,0.56754433,659.24,658.19,1.17212398]
[1746960064466,0.56754433,659.24,658.2,1.17212398]
[1746960064765,0.56754433,659.24,658.19,1.17212398]
[1746960065560,0.56754433,659.24,658.2,1.17212398]
[1746960065764,0.30337964,659.24,658.2,1.17212398]
[1746960065966,0.26417271,659.23,658.2,1.17212398]
[1746960066191,0.26417271,659.23,658.21,1.17212398]
[1746960066192,0.30338885,659.22,658.21,1.17212398]
[1746960066765,0.30338885,659.22,658.22,1.17348581]
[1746960067365,0.30338885,659.22,658.23,1.17348581]
[1746960067960,0.30338885,659.22,658.24,1.17348581]
[1746960068963,0.30338885,659.22,658.25,1.17348581]
[1746960069662,0.30338885,659.22,658.19,1.17348581]
[1746960069867,0.30338885,659.22,658.2,0.30375829]
[1746960070070,0.30338885,659.22,658.21,0.30375829]
[1746960070262,0.30338885,659.22,658.22,0.30375829]
[1746960070465,0.30338885,659.22,658.22,1.17348581]
[1746960071063,0.30338885,659.22,658.23,1.17348581]
[1746960071667,0.30338885,659.22,658.24,1.17348581]
[1746960072067,0.30338885,659.22,658.25,1.17348581]
[1746960072967,0.30338885,659.22,658.18,0.539]
[1746960072968,0.30338885,659.22,658.26,1.17348581]
[1746960073470,0.30338885,659.22,658.19,1.17348581]
[1746960073671,0.30338885,659.22,658.2,0.30374514]
[1746960073870,0.30338885,659.22,658.21,0.30374514]
[1746960074071,0.30338885,659.22,658.22,1.17348581]
[1746960074771,0.30338885,659.22,658.23,1.17348581]
[1746960075373,0.30338885,659.22,658.24,1.17348581]
[1746960076172,0.30338885,659.22,658.25,1.17348581]
[1746960077675,0.30338885,659.22,658.26,1.17348581]
[1746960078274,0.30338885,659.22,658.27,1.17348581]
[1746960078779,0.30338885,659.22,658.28,0.539]
[1746960079171,0.30338885,659.22,658.29,1.17348581]
[1746960079878,0.30338885,659.22,658.28,0.539]
[1746960080779,0.30338885,659.22,658.29,1.17321061]
[1746960081581,0.30338885,659.22,658.28,0.539]
[1746960091787,0.30338885,659.22,658.29,1.17326301]
[1746960092488,0.30338885,659.22,658.3,1.17326301]
[1746960092888,0.30338885,659.22,658.31,1.17326301]
[1746960093191,0.30338885,659.22,658.32,1.17326301]
[1746960093788,0.30338885,659.22,658.28,0.539]
[1746960094189,0.30338885,659.22,658.29,1.17242532]
[1746960094588,0.30338885,659.22,658.3,1.17242532]
[1746960094989,0.30338885,659.22,658.31,1.17242532]
[1746960095285,0.30338885,659.22,658.32,1.17242532]
[1746960096086,0.30338885,659.22,658.28,0.539]
[1746960096087,0.30338885,659.22,658.33,1.17242532]
[1746960096692,0.30338885,659.22,658.28,0.539]
[1746960097093,0.30338885,659.22,658.29,1.17141776]
[1746960097392,0.30338885,659.22,658.3,1.17141776]
[1746960097994,0.30338885,659.22,658.31,1.17141776]
[1746960098395,0.30338885,659.22,658.28,0.539]
[1746960098396,0.30338885,659.22,658.32,1.17141776]
[1746960098993,0.30338885,659.22,658.29,1.17141776]
[1746960099894,0.30338885,659.22,658.3,1.17141776]
[1746960100294,0.30338885,659.22,658.31,1.17141776]
[1746960100694,0.30338885,659.22,658.32,1.17141776]
[1746960101091,0.30338885,659.22,658.29,1.17141776]
[1746960101795,0.30338885,659.22,658.3,1.17141776]
[1746960102200,0.30338885,659.22,658.29,1.17141776]
[1746960102796,0.30338885,659.22,658.3,1.17141776]
[1746960103094,0.30338885,659.22,658.29,1.17141776]
[1746960103797,0.30338885,659.22,658.3,1.17141776]
[1746960104500,0.30338885,659.22,658.31,1.17141776]
[1746960105197,0.30338885,659.22,658.32,1.17141776]
[1746960105498,0.30338885,659.22,658.28,0.539]
[1746960105499,0.30338885,659.22,658.29,1.17141776]
[1746960106203,0.30338885,659.22,658.3,1.17141776]
[1746960106802,0.30338885,659.22,658.31,1.17141776]
[1746960107202,0.30338885,659.22,658.32,1.17141776]
[1746960108003,0.30338885,659.22,658.33,1.17202785]
[1746960108636,0.30338885,659.22,657.9,0.30399756]
[1746960108799,0.30338885,659.22,657.91,0.30373657]
[1746960109003,0.30338885,659.22,657.92,0.30373657]
[1746960109203,0.30338885,659.22,657.93,0.30373657]
[1746960109403,0.30338885,659.22,657.94,0.30373657]
[1746960109604,0.30338885,659.22,657.95,0.30373657]
[1746960109800,0.30338885,659.22,657.96,0.30373657]
[1746960110000,0.30338885,659.22,657.97,1.47572543]
[1746960110206,0.30338885,659.22,657.98,0.30373657]
[1746960110402,0.30338885,659.22,657.99,0.30373657]
[1746960110607,0.30338885,659.22,658.0,0.30373657]
[1746960110808,0.30338885,659.22,658.01,1.47572543]
[1746960111002,0.30338885,659.22,658.02,0.30373657]
[1746960111203,0.30338885,659.22,658.03,1.47572543]
[1746960111403,0.30338885,659.22,658.04,0.30373657]
[1746960111606,0.30338885,659.22,658.05,0.30373657]
[1746960111824,0.30338885,659.22,658.06,0.30373657]
[1746960112002,0.30338885,659.22,658.07,0.30373657]
[1746960112203,0.30338885,659.22,658.08,0.30373657]
[1746960112407,0.30338885,659.22,658.09,0.30373657]
[1746960112603,0.30338885,659.22,658.1,1.47572543]
[1746960112808,0.30338885,659.22,658.11,0.30373657]
[1746960113003,0.30338885,659.22,658.12,0.30373657]
[1746960113206,0.30338885,659.22,658.13,0.30373657]
[1746960113406,0.30338885,659.22,658.14,1.47572543]
[1746960113709,0.30338885,659.22,658.15,0.30373202]
[1746960113902,0.30338885,659.22,658.16,1.47572088]
[1746960114106,0.30338885,659.22,658.17,0.30373202]
[1746960114403,0.30338885,659.22,658.18,0.30373202]
[1746960114606,0.30338885,659.22,658.17,1.17198886]
[1746960114607,0.30338885,659.22,658.19,1.47572088]
[1746960114907,0.30338885,659.22,658.2,0.30373202]
[1746960115310,0.30338885,659.22,658.21,1.17198886]
[1746960115507,0.30338885,659.22,658.22,0.30373616]
[1746960115703,0.30338885,659.22,658.23,1.47572502]
[1746960116002,0.30338885,659.22,658.24,0.30373616]
[1746960116207,0.30338885,659.22,658.25,0.30373616]